Workbook

Sheet EAEPE_CA_DEP
B2: FISCALÍA ANTICORRUPCIÓN DEL ESTADO DE CHIHUAHUA
B3: Estado Analítico del Ejercicio del Presupuesto de Egresos
B4: Clasificación Administrativa
B5: Del 01 Enero al 31 de Diciembre del 2022
B6: Concepto | C6: Egresos | H6: Subejercicio
C7: Aprobado | D7: Ampliaciones/ (Reducciones) | E7: Modificado | F7: Devengado | G7: Pagado
C8: 1 | D8: 2 | E8: 3 = (1+2) | F8: 4 | G8: 5 | H8: 6 = ( 3 - 4)
B10: 70600001 FISCALÍA ANTICORRUPCIÓN DEL ESTADO DE CHIHUAHUA | C10: 8016022 | D10: -2430082 | E10: =C10+D10 -> 5585940 | F10: 2920379 | G10: 2917379 | H10: =E10-F10 -> 2665561
B11: 70601001 OFICINA DEL VICEFISCAL DE INVESTIGACIÓN Y PROCESOS | C11: 25608097 | D11: -2476357 | E11: =C11+D11 -> 23131740 | F11: 12315953 | G11: 12143939 | H11: 10815787
B12: 70602001 OFICINA DEL C. DIRECTOR JURÍDICO Y DE EXTINCIÓN DE DOMINIO | C12: 8402225 | D12: -2891551 | E12: 5510674 | F12: 3593909 | G12: 3589910 | H12: 1916765
B13: 70603001 OFICINA DEL C. DIRECTOR DE INTELIGENCIA DELICTIVA, PATRIMONIAL, FINANCIERA Y FISCAL | C13: 5305471 | D13: 276845 | E13: =C13+D13 -> 5582316 | F13: 4672410 | G13: 4628364 | H13: 909906
B14: 70604001 OFICINA DEL C. DIRECTOR DE LA POLICÍA DE INVESTIGACIÓN | C14: 0 | D14: 0 | E14: 0 | F14: 0 | G14: 0 | H14: 0
B15: 70605001 OFICINA DEL C. DIRECTOR ADMINISTRATIVO | C15: 10422322 | D15: 1502683 | E15: 11925005 | F15: 8401188 | G15: 8348872 | H15: 3523817
B16: 70606001 VISITADURÍA GENERAL | C16: 2469026 | D16: 286981 | E16: 2756007 | F16: 2082102 | G16: 2080102 | H16: 673905
B17: 70607001 ÁREA COORDINADORA DE ARCHIVOS | C17: 1574612 | D17: 249622 | E17: 1824234 | F17: 1458876 | G17: 1455875 | H17: 365358
B18: 70608001 UNIDAD DE TRANSPARENCIA | C18: 714691 | D18: 71018 | E18: 785709 | F18: 632841 | G18: 631841 | H18: 152868
B20: Total del Gasto | C20: =SUM(C9:C19) -> 62512466 | D20: =SUM(D9:D19) -> -5410841 | E20: =SUM(C20,D20) -> 57101625 | F20: =SUM(F9:F19) -> 36077658 | G20: =SUM(G9:G19) -> 35796282 | H20: =+E20-F20 -> 21023967
